fUST/lending_fUST_20241227
["ID","MTS","AMOUNT","RATE_DAILY","PERIOD"]
[346727624,1735249852174,-500.0,0.00017484,2]
[346727625,1735249852184,-430.85,0.00017484,2]
[346727626,1735249852193,-677.71,0.00017484,2]
[346727627,1735249852203,-500.0,0.00017484,2]
[346727628,1735249852212,-500.0,0.00017484,2]
[346727629,1735249852221,-392.93211232,0.00017485,2]
[346727630,1735249852231,-500.0,0.00017485,2]
[346727631,1735249852304,-500.0,0.00017485,2]
[346727632,1735249852313,-500.0,0.00017485,2]
[346727633,1735249852323,-500.0,0.00017485,2]
[346727634,1735249852332,-500.0,0.00017485,2]
[346727635,1735249852341,-500.0,0.00017485,2]
[346727636,1735249852350,-500.0,0.00017485,2]
[346727637,1735249852359,-500.0,0.00017485,2]
[346727638,1735249852368,-500.0,0.00017485,2]
[346727639,1735249852377,-500.0,0.00017485,2]
[346727640,1735249852386,-500.0,0.00017485,2]
[346727641,1735249852395,-500.0,0.00017485,2]
[346727642,1735249852406,-500.0,0.00017485,2]
[346727643,1735249852415,-500.0,0.00017485,2]
[346727644,1735249852426,-500.0,0.00017485,2]
[346727645,1735249852435,-500.0,0.00017485,2]
[346727646,1735249852445,-500.0,0.00017485,2]
[346727647,1735249852454,-500.0,0.00017485,2]
[346727648,1735249852463,-160.0,0.00017485,2]
[346727649,1735249852473,-500.0,0.00017485,2]
[346727650,1735249852483,-500.0,0.00017485,2]
[346727651,1735249852492,-648.55,0.00017485,2]
[346727652,1735249852502,-500.0,0.00017485,2]
[346727653,1735249852511,-500.0,0.00017486,2]
[346727654,1735249852520,-5620.77,0.00017486,2]
[346727655,1735249852529,-500.0,0.00017486,2]
[346727656,1735249852538,-1968.42,0.00017486,2]
[346727657,1735249852547,-558.78,0.00017486,2]
[346727658,1735249852556,-500.0,0.00017486,2]
[346727659,1735249852564,-500.0,0.00017487,2]
[346727660,1735249852573,-1456.39,0.00017487,2]
[346727661,1735249852582,-500.0,0.00017487,2]
[346727662,1735249852591,-500.0,0.00017487,2]
[346727663,1735249852600,-500.0,0.00017488,2]
[346727664,1735249852609,-500.0,0.00017488,2]
[346727665,1735249852617,-500.0,0.00017488,2]
[346727666,1735249852627,-2083.88,0.00017488,2]
[346727667,1735249852636,-500.0,0.00017488,2]
[346727668,1735249852646,-1007.75,0.00017488,2]
[346727669,1735249852655,-500.0,0.00017488,2]
[346727670,1735249852663,-500.0,0.00017488,2]
[346727671,1735249852672,-500.0,0.00017488,2]
[346727672,1735249852682,-500.0,0.00017488,2]
[346727673,1735249852691,-500.0,0.00017488,2]
[346727674,1735249852700,-500.0,0.00017488,2]
[346727675,1735249852709,-500.0,0.00017488,2]
[346727676,1735249852718,-500.0,0.00017488,2]
[346727677,1735249852727,-516.13,0.00017488,2]
[346727678,1735249852736,-500.0,0.00017488,2]
[346727679,1735249852745,-569.39,0.00017488,2]
[346727680,1735249852754,-150.17,0.00017503,2]
[346727681,1735249852764,-500.0,0.00017503,2]
[346727682,1735249852773,-500.0,0.00017503,2]
[346727683,1735249852782,-500.0,0.00017503,2]
[346727684,1735249852791,-150.14,0.00017503,2]
[346727685,1735249852800,-150.14,0.00017503,2]
[346727686,1735249852810,-150.14,0.00017503,2]
[346727687,1735249852819,-500.0,0.00017503,2]
[346727688,1735249852828,-500.0,0.00017503,2]
[346727689,1735249852837,-500.0,0.00017503,2]
[346727690,1735249852847,-151.0,0.0001758,2]
[346727691,1735249852855,-500.0,0.0001758,2]
[346727692,1735249852864,-533.08,0.0001758,2]
[346727693,1735249852874,-500.0,0.0001758,2]
[346727694,1735249852883,-500.0,0.0001758,2]
[346727695,1735249852892,-500.0,0.0001758,2]
[346727696,1735249852901,-500.0,0.0001758,2]
[346727697,1735249852910,-500.0,0.0001758,2]
[346727698,1735249852920,-500.0,0.0001758,2]
[346727699,1735249852929,-500.0,0.0001758,2]
[346727700,1735249852938,-500.0,0.00017582,2]
[346727701,1735249852947,-500.0,0.00017582,2]
[346727702,1735249852957,-500.0,0.00017582,2]
[346727703,1735249852966,-182.4,0.00017584,2]
[346727704,1735249852975,-500.0,0.00017584,2]
[346727705,1735249852984,-500.0,0.00017584,2]
[346727706,1735249852994,-1732.67,0.00017584,2]
[346727707,1735249853003,-500.0,0.00017584,2]
[346727708,1735249853012,-513.42,0.00017584,2]
[346727709,1735249853021,-13695.59,0.00017584,2]
[346727710,1735249853031,-151.0,0.00017588,2]
[346727711,1735249853040,-156.395316,0.00017588,2]
[346727712,1735249853050,-151.0,0.00017588,2]
[346727713,1735249853059,-151.0,0.00017588,2]
[346727714,1735249853068,-235.148827,0.00017588,2]
[346727715,1735249853077,-9731.3,0.00017588,2]
[346727716,1735249853087,-151.0,0.00017588,2]
[346727717,1735249853096,-151.0,0.00017588,2]
[346727718,1735249853105,-151.0,0.00017588,2]
[346727719,1735249853114,-151.0,0.00017588,2]
[346727720,1735249853123,-151.0,0.00017589,2]
[346727721,1735249853131,-151.0,0.00017589,2]
[346727722,1735249853141,-151.0,0.00017589,2]
[346727723,1735249853150,-151.0,0.00017589,2]
[346727724,1735249853159,-151.0,0.00017589,2]
[346727725,1735249853168,-151.0,0.00017589,2]
[346727726,1735249853177,-151.0,0.00017589,2]
[346727727,1735249853186,-151.0,0.00017589,2]
[346727728,1735249853195,-151.0,0.00017589,2]
[346727729,1735249853205,-151.0,0.00017589,2]
[346727730,1735249853215,-151.0,0.00017589,2]
[346727731,1735249853224,-612.464427,0.00017589,2]
[346727732,1735249853234,-612.464427,0.00017589,2]
[346727733,1735249853243,-225.436876,0.00017589,2]
[346727734,1735249853253,-225.436876,0.00017589,2]
[346727735,1735249853263,-200.805185,0.00017589,2]
[346727736,1735249853273,-200.805185,0.00017589,2]
[346727737,1735249853283,-151.0,0.00017589,2]
[346727738,1735249853292,-151.0,0.00017589,2]
[346727739,1735249853302,-946.20688646,0.0001764,2]
[346727740,1735249853313,-2722.87267812,0.00017657,2]
[346727741,1735249853323,-6756.5340413,0.00017698,2]
[346727742,1735249853333,-151.0,0.000177,2]
[346727743,1735249853343,-539.18,0.00017754,2]
[346727744,1735249853353,-500.0,0.00017754,2]
[346727745,1735249853363,-3581.54,0.00017754,2]
[346727746,1735249853373,-661.37,0.00017754,2]
[346727747,1735249853382,-500.0,0.00017754,2]
[346727748,1735249853392,-1426.63,0.00017754,2]
[346727749,1735249853402,-500.0,0.00017755,2]
[346727750,1735249853411,-500.0,0.00017755,2]
[346727751,1735249853480,-500.0,0.00017755,2]
[346727752,1735249853490,-500.0,0.00017755,2]
[346727753,1735249853501,-649.71,0.00017755,2]
[346727754,1735249853510,-500.0,0.00017755,2]
[346727755,1735249853519,-500.0,0.00017755,2]
[346727756,1735249853529,-410.06867226,0.00017755,2]
[346727757,1735249853539,-13862.09,0.00017755,2]
[346727758,1735249853548,-500.0,0.00017755,2]
[346727759,1735249853557,-500.0,0.00017755,2]
[346727760,1735249853566,-6001.0,0.00017755,2]
[346727761,1735249853575,-500.0,0.00017755,2]
[346727762,1735249853584,-500.0,0.00017755,2]
[346727763,1735249853594,-500.0,0.00017755,2]
[346727764,1735249853603,-500.0,0.00017755,2]
[346727765,1735249853612,-889.71,0.00017756,2]
[346727766,1735249853622,-500.0,0.00017756,2]
[346727767,1735249853631,-500.0,0.00017756,2]
[346727768,1735249853641,-500.0,0.00017756,2]
[346727769,1735249853650,-500.0,0.00017756,2]
[346727770,1735249853659,-1032.39,0.00017756,2]
[346727771,1735249853668,-500.0,0.00017756,2]
[346727772,1735249853678,-500.0,0.00017756,2]
[346727773,1735249853687,-1271.83,0.00017756,2]
[346727774,1735249853697,-168.0,0.00017756,2]
[346727775,1735249853707,-500.0,0.00017756,2]
[346727776,1735249853716,-1351.38,0.00017756,2]
[346727777,1735249853725,-506.22,0.00017756,2]
[346727778,1735249853734,-691.96,0.00017756,2]
[346727779,1735249853743,-2428.17,0.00017756,2]
[346727780,1735249853752,-500.0,0.00017756,2]
[346727781,1735249853761,-1242.11,0.00017756,2]
[346727782,1735249853770,-334.7362487,0.00017756,2]
[346727783,1735249853779,-216.26200128,0.00017756,2]
[346727784,1735249853788,-1437.84,0.00017756,2]
[346727785,1735249853797,-584.02,0.00017756,2]
[346727786,1735249853806,-500.0,0.00017756,2]
[346727787,1735249853815,-500.0,0.00017756,2]
[346727788,1735249853824,-500.0,0.00017756,2]
[346727789,1735249853833,-500.0,0.00017756,2]
[346727790,1735249853844,-620.65,0.00017756,2]
[346727791,1735249853853,-18.26312684,0.00017756,2]
[346727792,1735249927370,14400.61376574,0.00020598,30]
[346727794,1735250601802,500.0,0.00023,120]
[346727795,1735250655134,500.0,0.00023,120]
[346727796,1735250662248,500.0,0.00023,120]
[346727797,1735250668492,489.92221,0.00023,120]
[346727798,1735250833133,-400.0,0.00013973,2]
[346727799,1735250833156,-177.745041,0.00015656,2]
[346727800,1735250833178,-2576.37136665,0.00016559,2]
[346727801,1735250833200,-300.0,0.00016654,2]
[346727802,1735250833223,-300.0,0.00016654,2]
[346727803,1735250833244,-159.32393815,0.00016655,2]
[346727804,1735250833266,-500.0,0.00016655,2]
[346727805,1735250833289,-500.0,0.00016655,2]
[346727806,1735250833311,-500.0,0.00016655,2]
[346727807,1735250833334,-500.0,0.00016655,2]
[346727808,1735250833358,-500.0,0.00016655,2]
[346727809,1735250833380,-500.0,0.00016655,2]
[346727810,1735250833402,-421.3961511,0.00016655,2]
[346727811,1735250833430,-78.6038489,0.00016655,2]
[346727812,1735250833452,-500.0,0.00016655,2]
[346727813,1735250833477,-500.0,0.00016655,2]
[346727814,1735250833499,-474.37827868,0.00016655,2]
[346727815,1735250833520,-20.96188015,0.00016655,2]
[346727816,1735250842085,-479.03811985,0.00016655,2]
[346727817,1735250842108,-500.0,0.00016655,2]
[346727818,1735250842133,-500.0,0.00016655,2]
[346727819,1735250842155,-500.0,0.00016655,2]
[346727820,1735250842179,-500.0,0.00016655,2]
[346727821,1735250842202,-500.0,0.00016655,2]
[346727822,1735250842225,-500.0,0.00016655,2]
[346727823,1735250842248,-500.0,0.00016655,2]
[346727824,1735250842273,-554.89807871,0.00016655,2]
[346727825,1735250842295,-165.34971357,0.00016655,2]
[346727826,1735250842319,-500.0,0.00016655,2]
[346727827,1735250842343,-366.62909923,0.00016655,2]
[346727828,1735250850096,-133.37090077,0.00016655,2]
[346727829,1735250850119,-137.2732717,0.00016655,2]
[346727831,1735250970099,-278.53860731,0.00016556,2]
[346728008,1735251038205,-300.0,0.00016653,2]
[346728009,1735251038215,-300.0,0.00016653,2]
[346728010,1735251038224,-528.9,0.00016654,2]
[346728011,1735251038233,-500.0,0.00016654,2]
[346728012,1735251038242,-500.0,0.00016654,2]
[346728013,1735251038251,-728.69034575,0.00016654,2]
[346728014,1735251038263,-2343.08965425,0.00016654,2]
[346728015,1735251038273,-523.59,0.00016654,2]
[346728016,1735251038282,-1238.42,0.00016654,2]
[346728017,1735251038291,-500.0,0.00016655,2]
[346728018,1735251038300,-500.0,0.00016655,2]
[346728019,1735251038310,-362.7267283,0.00016655,2]
[346728021,1735251038320,-500.0,0.00016655,2]
[346728024,1735251038330,-500.0,0.00016655,2]
[346728025,1735251038340,-500.0,0.00016655,2]
[346728027,1735251038349,-500.0,0.00016655,2]
[346728029,1735251038359,-500.0,0.00016655,2]
[346728030,1735251038368,-500.0,0.00016655,2]
[346728031,1735251038378,-500.0,0.00016655,2]
[346728032,1735251038388,-500.0,0.00016655,2]
[346728034,1735251038398,-500.0,0.00016655,2]
[346728035,1735251038408,-182.17361745,0.00016655,2]
[346728037,1735251038419,-317.82638255,0.00016655,2]
[346728038,1735251038428,-500.0,0.00016655,2]
[346728039,1735251038438,-500.0,0.00016655,2]
[346728040,1735251038447,-500.0,0.00016655,2]
[346728041,1735251038456,-500.0,0.00016655,2]
[346728042,1735251038466,-500.0,0.00016655,2]
[346728043,1735251038475,-291.26376577,0.00016655,2]
[346728044,1735251038484,-500.0,0.00016655,2]
[346728045,1735251038495,-500.0,0.00016655,2]
[346728046,1735251038504,-500.0,0.00016655,2]
[346728047,1735251038513,-500.0,0.00016655,2]
[346728048,1735251038523,-500.0,0.00016655,2]
[346728049,1735251038534,-500.0,0.00016655,2]
[346728050,1735251038544,-500.0,0.00016655,2]
[346728051,1735251038553,-500.0,0.00016655,2]
[346728052,1735251038564,-250.0,0.00016655,2]
[346728053,1735251038575,-500.0,0.00016655,2]
[346728054,1735251038584,-500.0,0.00016655,2]
[346728055,1735251038593,-179.61704676,0.00016655,2]
[346728056,1735251038603,-382.47546534,0.00016655,2]
[346728057,1735251038612,-500.0,0.00016655,2]
[346728058,1735251038621,-536.01110405,0.00016655,2]
[346728059,1735251038631,-500.0,0.00016656,2]
[346728060,1735251038640,-500.0,0.00016656,2]
[346728061,1735251038650,-500.0,0.00016656,2]
[346728062,1735251038659,-825.03,0.00016656,2]
[346728063,1735251038668,-500.0,0.00016656,2]
[346728064,1735251038678,-500.0,0.00016656,2]
[346728065,1735251038687,-500.0,0.00016656,2]
[346728066,1735251038697,-189.68882962,0.00016656,2]
[346728067,1735251038706,-500.0,0.00016656,2]
[346728068,1735251038715,-500.0,0.00016656,2]
[346728069,1735251038724,-510.09408565,0.00016656,2]
[346728070,1735251038733,-500.0,0.00016656,2]
[346728071,1735251038743,-500.0,0.00016656,2]
[346728072,1735251038753,-500.0,0.00016656,2]
[346728073,1735251038765,-500.0,0.00016656,2]
[346728074,1735251038774,-500.0,0.00016656,2]
[346728075,1735251038783,-500.0,0.00016656,2]
[346728076,1735251038792,-500.0,0.00016656,2]
[346728077,1735251038803,-500.0,0.00016656,2]
[346728078,1735251038812,-500.0,0.00016656,2]
[346728079,1735251038822,-500.0,0.00016656,2]
[346728080,1735251038832,-500.0,0.00016656,2]
[346728081,1735251038842,-633.27330956,0.00016656,2]
[346728082,1735251038854,-300.65669044,0.00016656,2]
[346728083,1735251038863,-500.0,0.00016656,2]
[346728084,1735251038874,-500.0,0.00016656,2]
[346728085,1735251038884,-500.0,0.00016656,2]
[346728086,1735251038893,-500.0,0.00016656,2]
[346728087,1735251038903,-500.0,0.00016656,2]
[346728088,1735251038912,-500.0,0.00016656,2]
[346728089,1735251038921,-500.0,0.00016656,2]
[346728090,1735251038930,-500.0,0.00016656,2]
[346728091,1735251038939,-500.0,0.00016656,2]
[346728092,1735251038948,-500.0,0.00016656,2]
[346728093,1735251038958,-500.0,0.00016656,2]
[346728094,1735251038967,-500.0,0.00016656,2]
[346728095,1735251038976,-500.0,0.00016656,2]
[346728096,1735251038985,-500.0,0.00016656,2]
[346728097,1735251038993,-500.0,0.00016656,2]
[346728098,1735251039003,-500.0,0.00016656,2]
[346728099,1735251039012,-500.0,0.00016656,2]
[346728100,1735251039021,-500.0,0.00016656,2]
[346728101,1735251039030,-500.0,0.00016656,2]
[346728102,1735251039039,-1224.65,0.00016656,2]
[346728103,1735251039048,-168.0,0.00016656,2]
[346728104,1735251039057,-311.63419869,0.00016656,2]
[346728105,1735251039067,-500.0,0.00016656,2]
[346728106,1735251039075,-500.0,0.00016656,2]
[346728107,1735251039085,-238.26221034,0.00016656,2]
[346728108,1735251039095,-500.0,0.00016656,2]
[346728109,1735251039103,-500.0,0.00016656,2]
[346728110,1735251039113,-500.0,0.00016656,2]
[346728111,1735251039122,-500.0,0.00016656,2]
[346728112,1735251039131,-500.0,0.00016656,2]
[346728113,1735251039141,-500.0,0.00016656,2]
[346728114,1735251039151,-500.0,0.00016656,2]
[346728115,1735251039160,-500.0,0.00016656,2]
[346728116,1735251039169,-604.86,0.00016656,2]
[346728117,1735251039178,-2195.65,0.00016656,2]
[346728118,1735251039187,-500.0,0.00016656,2]
[346728119,1735251039197,-500.0,0.00016656,2]
[346728120,1735251039207,-500.0,0.00016656,2]
[346728121,1735251039308,-500.0,0.00016656,2]
[346728122,1735251039317,-500.0,0.00016656,2]
[346728123,1735251039327,-1200.97,0.00016656,2]
[346728124,1735251039336,-561.25,0.00016656,2]
[346728125,1735251039345,-274.22527608,0.00016656,2]
[346728126,1735251039355,-500.0,0.00016656,2]
[346728127,1735251039364,-500.0,0.00016656,2]
[346728128,1735251039373,-1328.84,0.00016656,2]
[346728129,1735251039383,-500.0,0.00016656,2]
[346728130,1735251039394,-500.0,0.00016656,2]
[346728131,1735251039403,-500.0,0.00016656,2]
[346728132,1735251039413,-634.41,0.00016656,2]
[346728133,1735251039423,-500.0,0.00016656,2]
[346728134,1735251039432,-622.45,0.00016656,2]
[346728135,1735251039441,-500.0,0.00016656,2]
[346728136,1735251039451,-500.0,0.00016656,2]
[346728137,1735251039460,-2036.61,0.00016656,2]
[346728138,1735251039469,-500.0,0.00016656,2]
[346728139,1735251039478,-500.0,0.00016656,2]
[346728140,1735251039487,-500.0,0.00016656,2]
[346728141,1735251039496,-3449.47,0.00016656,2]
[346728142,1735251039506,-542.43,0.00016656,2]
[346728143,1735251039515,-423.60396164,0.00016656,2]
[346728144,1735251039524,-500.0,0.00016656,2]
[346728145,1735251039534,-500.0,0.00016656,2]
[346728146,1735251039543,-500.0,0.00016656,2]
[346728147,1735251039552,-527.87,0.00016656,2]
[346728148,1735251039561,-500.0,0.00016656,2]
[346728149,1735251039571,-500.0,0.00016656,2]
[346728150,1735251039581,-1221.05,0.00016656,2]
[346728151,1735251039590,-500.0,0.00016656,2]
[346728152,1735251039600,-500.0,0.00016656,2]
[346728153,1735251039609,-500.0,0.00016656,2]
[346728154,1735251039619,-494.24183651,0.00016656,2]
[346728155,1735251039629,-500.0,0.00016656,2]
[346728156,1735251039638,-500.0,0.00016656,2]
[346728157,1735251039647,-1915.58,0.00016656,2]
[346728158,1735251039656,-500.0,0.00016656,2]
[346728159,1735251039666,-1329.43,0.00016656,2]
[346728160,1735251039675,-12773.6,0.00016656,2]
[346728161,1735251039684,-500.0,0.00016656,2]
[346728162,1735251039694,-500.0,0.00016656,2]
[346728163,1735251039703,-500.0,0.00016656,2]
[346728164,1735251039713,-500.0,0.00016656,2]
[346728165,1735251039722,-1993.39,0.00016656,2]
[346728166,1735251039731,-500.0,0.00016656,2]
[346728167,1735251039741,-872.16,0.00016656,2]
[346728168,1735251039750,-5440.14,0.00016656,2]
[346728169,1735251039763,-1932.78,0.00016656,2]
[346728170,1735251039772,-500.0,0.00016656,2]
[346728171,1735251039781,-500.0,0.00016656,2]
[346728172,1735251039791,-1628.16,0.00016656,2]
[346728173,1735251039800,-500.0,0.00016656,2]
[346728174,1735251039809,-500.0,0.00016656,2]
[346728175,1735251039818,-500.0,0.00016656,2]
[346728176,1735251039827,-500.0,0.00016656,2]
[346728177,1735251039837,-501.91530917,0.00016656,2]
[346728178,1735251039847,-500.0,0.00016656,2]
[346728179,1735251039856,-500.0,0.00016656,2]
[346728180,1735251039865,-960.72,0.00016656,2]
[346728181,1735251039875,-500.0,0.00016656,2]
[346728182,1735251039884,-500.0,0.00016656,2]
[346728183,1735251039893,-500.0,0.00016656,2]
[346728184,1735251039903,-500.0,0.00016656,2]
[346728185,1735251039912,-500.0,0.00016656,2]
[346728186,1735251039921,-500.0,0.00016656,2]
[346728187,1735251039930,-500.0,0.00016656,2]
[346728188,1735251039940,-500.0,0.00016656,2]
[346728189,1735251039949,-500.0,0.00016656,2]
[346728190,1735251039958,-500.0,0.00016656,2]
[346728191,1735251039968,-500.0,0.00016656,2]
[346728192,1735251039977,-231.09399343,0.00016656,2]
[346728193,1735251039987,-500.0,0.00016656,2]
[346728194,1735251039996,-243.16519323,0.00016656,2]
[346728195,1735251040006,-500.0,0.00016656,2]
[346728196,1735251040015,-1049.99,0.00016657,2]
[346728198,1735251040024,-1465.0,0.00016657,2]
[346728200,1735251040034,-500.0,0.00016657,2]
[346728202,1735251040043,-890.45,0.00016657,2]
[346728203,1735251040052,-564.61,0.00016657,2]
[346728204,1735251040062,-392.63397432,0.00016657,2]
[346728205,1735251040075,-107.36602568,0.00016657,2]
[346728206,1735251040084,-500.0,0.00016657,2]
[346728207,1735251040094,-44226.71,0.00016657,2]
[346728208,1735251040104,-912.19,0.00016657,2]
[346728209,1735251040113,-500.0,0.00016658,2]
[346728211,1735251040123,-500.0,0.00016658,2]
[346728212,1735251040132,-750.59,0.00016658,2]
[346728213,1735251040142,-500.0,0.00016658,2]
[346728215,1735251040151,-500.0,0.00016658,2]
[346728216,1735251040160,-500.0,0.00016658,2]
[346728217,1735251040169,-500.0,0.00016658,2]
[346728218,1735251040179,-500.0,0.00016658,2]
[346728219,1735251040189,-500.0,0.00016658,2]
[346728220,1735251040199,-500.0,0.00016658,2]
[346728221,1735251040209,-500.0,0.00016658,2]
[346728222,1735251040219,-500.0,0.00016658,2]
[346728223,1735251040229,-500.0,0.00016658,2]
[346728224,1735251040238,-500.0,0.00016658,2]
[346728225,1735251040247,-500.0,0.00016658,2]
[346728227,1735251040256,-500.0,0.00016658,2]
[346728228,1735251040266,-500.0,0.00016658,2]
[346728229,1735251040275,-500.0,0.00016658,2]
[346728230,1735251040284,-500.0,0.00016658,2]
[346728231,1735251040294,-500.0,0.00016658,2]
[346728232,1735251040303,-500.0,0.00016658,2]
[346728233,1735251040312,-500.0,0.00016658,2]
[346728234,1735251040322,-500.0,0.00016658,2]
[346728235,1735251040331,-500.0,0.00016658,2]
[346728236,1735251040341,-206.11395756,0.00016658,2]
[346728237,1735251040351,-500.0,0.00016658,2]
[346728238,1735251040361,-500.0,0.00016658,2]
[346728239,1735251040371,-500.0,0.00016658,2]
[346728240,1735251040380,-500.0,0.00016658,2]
[346728241,1735251040391,-607.92,0.00016658,2]
[346728242,1735251040400,-500.0,0.00016658,2]
[346728243,1735251040410,-1594.91,0.00016658,2]
[346728244,1735251040420,-500.0,0.00016658,2]
[346728246,1735251040429,-500.0,0.00016658,2]
[346728247,1735251040439,-500.0,0.00016658,2]
[346728248,1735251040448,-500.0,0.00016658,2]
[346728249,1735251040457,-500.0,0.00016658,2]
[346728250,1735251040466,-500.0,0.00016658,2]
[346728251,1735251040475,-1057.65,0.00016658,2]
[346728252,1735251040485,-5006.14,0.00016658,2]
[346728253,1735251040494,-1599.26,0.00016658,2]
[346728254,1735251040505,-898.01,0.00016658,2]
[346728255,1735251040514,-736.39,0.00016658,2]
[346728256,1735251040523,-500.0,0.00016658,2]
[346728257,1735251040533,-500.0,0.00016658,2]
[346728258,1735251040543,-500.0,0.00016658,2]
[346728259,1735251040552,-500.0,0.00016658,2]
[346728260,1735251040562,-500.0,0.00016658,2]
[346728261,1735251040572,-500.0,0.00016658,2]
[346728262,1735251040582,-500.0,0.00016658,2]
[346728263,1735251040591,-1901.93,0.00016658,2]
[346728264,1735251040600,-500.0,0.00016658,2]
[346728265,1735251040609,-500.0,0.00016658,2]
[346728266,1735251040618,-660.0,0.00016658,2]
[346728267,1735251040628,-500.0,0.00016658,2]
[346728268,1735251040637,-500.0,0.00016659,2]
[346728269,1735251040646,-500.0,0.00016659,2]
[346728270,1735251040655,-503.27089543,0.00016659,2]
[346728271,1735251040664,-500.0,0.00016659,2]
[346728272,1735251040674,-500.0,0.00016659,2]
[346728273,1735251040683,-500.0,0.00016659,2]
[346728274,1735251040692,-500.0,0.00016659,2]
[346728275,1735251040702,-500.0,0.00016659,2]
[346728276,1735251040711,-500.0,0.00016659,2]
[346728277,1735251040720,-500.0,0.00016659,2]
[346728278,1735251040729,-500.0,0.00016659,2]
[346728279,1735251040738,-500.0,0.00016659,2]
[346728280,1735251040747,-500.0,0.00016659,2]
[346728281,1735251040759,-536.13,0.00016659,2]
[346728282,1735251040768,-500.0,0.00016659,2]
[346728283,1735251040777,-500.0,0.00016659,2]
[346728284,1735251040786,-500.0,0.00016659,2]
[346728285,1735251040796,-500.0,0.00016659,2]
[346728286,1735251040805,-500.0,0.00016659,2]
[346728287,1735251040814,-500.0,0.00016659,2]
[346728288,1735251040823,-500.0,0.00016659,2]
[346728289,1735251040832,-163.54014152,0.00016659,2]
[346728290,1735251040845,-336.45985848,0.00016659,2]
[346728291,1735251040855,-500.0,0.00016659,2]
[346728292,1735251040864,-500.0,0.00016659,2]
[346728293,1735251040873,-239.75082026,0.00016659,2]
[346728294,1735251041043,-502.98698104,0.00016656,2]
[346728295,1735251041053,-925.74,0.00016656,2]
[346728296,1735251041142,-925.74,0.00016657,2]
[346728297,1735251041152,-260.24917974,0.00016659,2]
[346728298,1735251041162,-500.0,0.00016659,2]
[346728299,1735251041172,-512.10233924,0.00016659,2]
[346728300,1735251041182,-500.0,0.00016659,2]
[346728301,1735251041192,-500.0,0.00016659,2]
[346728302,1735251041202,-500.0,0.00016659,2]
[346728303,1735251041211,-500.0,0.00016659,2]
[346728304,1735251041221,-213.58819351,0.00016659,2]
[346728305,1735251041231,-500.0,0.00016659,2]
[346728306,1735251041241,-500.0,0.00016659,2]
[346728307,1735251041251,-500.0,0.00016659,2]
[346728308,1735251041260,-500.0,0.00016659,2]
[346728309,1735251041269,-500.0,0.00016659,2]
[346728310,1735251041279,-500.0,0.00016659,2]
[346728311,1735251041288,-500.0,0.00016659,2]
[346728312,1735251041297,-500.0,0.00016659,2]
[346728313,1735251041306,-500.0,0.00016659,2]
[346728314,1735251041315,-500.0,0.00016659,2]
[346728315,1735251041325,-500.0,0.00016659,2]